[Event "Early-Titled-Tuesday-Blitz-October-17-2023"]
[Site "Chess.com"]
[Date "2023.10.17"]
[Round "3"]
[White "FrenchMonster2002"]
[Black "Martial2008"]
[Result "0-1"]
[WhiteElo "2438"]
[BlackElo "2618"]
[TimeControl "180+1"]
[EndTime "8:30:37 PDT"]
[Termination "Martial2008 won on time"]

1. e4 {[%clk 0:03:00.2]} 1... e5 {[%clk 0:02:54.8]} 2. Nf3 {[%clk 0:02:57.9]}
2... Nc6 {[%clk 0:02:54.2]} 3. Bb5 {[%clk 0:02:56.5]} 3... a6 {[%clk 0:02:54.3]}
4. Ba4 {[%clk 0:02:54]} 4... d6 {[%clk 0:02:52.8]} 5. d4 {[%clk 0:02:48.2]} 5...
b5 {[%clk 0:02:46.8]} 6. Bb3 {[%clk 0:02:46.1]} 6... Nxd4 {[%clk 0:02:46.1]} 7.
Nxd4 {[%clk 0:02:40.8]} 7... exd4 {[%clk 0:02:47]} 8. c3 {[%clk 0:02:31.2]} 8...
c5 {[%clk 0:02:44.2]} 9. cxd4 {[%clk 0:02:24.9]} 9... c4 {[%clk 0:02:44]} 10.
Bc2 {[%clk 0:02:25.5]} 10... Bb7 {[%clk 0:02:40.7]} 11. O-O {[%clk 0:02:24.4]}
11... Nf6 {[%clk 0:02:40.8]} 12. Nc3 {[%clk 0:02:19.6]} 12... Be7 {[%clk
0:02:40.4]} 13. Re1 {[%clk 0:02:13.9]} 13... O-O {[%clk 0:02:39.9]} 14. a3
{[%clk 0:02:08.7]} 14... Re8 {[%clk 0:02:38.1]} 15. Qf3 {[%clk 0:02:04.4]} 15...
Bf8 {[%clk 0:02:33.3]} 16. Bg5 {[%clk 0:02:03.3]} 16... h6 {[%clk 0:02:33.4]}
17. Bh4 {[%clk 0:01:57.8]} 17... Be7 {[%clk 0:02:28.8]} 18. Rad1 {[%clk
0:01:40.2]} 18... Nd5 {[%clk 0:02:13.9]} 19. Bxe7 {[%clk 0:01:16.3]} 19... Qxe7
{[%clk 0:02:07.3]} 20. h3 {[%clk 0:00:52.5]} 20... Nxc3 {[%clk 0:02:05.7]} 21.
bxc3 {[%clk 0:00:51.8]} 21... g6 {[%clk 0:02:03.6]} 22. Qe3 {[%clk 0:00:43.9]}
22... Kg7 {[%clk 0:02:00.2]} 23. d5 {[%clk 0:00:39.5]} 23... g5 {[%clk
0:01:38.4]} 24. g3 {[%clk 0:00:32.9]} 24... f5 {[%clk 0:01:16.1]} 25. Qd4+
{[%clk 0:00:20.6]} 25... Qf6 {[%clk 0:01:01.1]} 26. Qb6 {[%clk 0:00:20.7]} 26...
Re7 {[%clk 0:00:56.6]} 27. exf5 {[%clk 0:00:11.9]} 27... Rae8 {[%clk 0:00:56.8]}
28. Re6 {[%clk 0:00:11.2]} 28... Rxe6 {[%clk 0:00:47.6]} 29. dxe6 {[%clk
0:00:09.6]} 29... Bf3 {[%clk 0:00:30.5]} 30. Rxd6 {[%clk 0:00:02.8]} 30... Qxc3
{[%clk 0:00:30.9]} 31. Qd4+ {[%clk 0:00:02.9]} 31... Qxd4 {[%clk 0:00:30.6]} 32.
Rxd4 {[%clk 0:00:03.8]} 32... Kf6 {[%clk 0:00:31.1]} 33. g4 {[%clk 0:00:02.5]}
33... Bc6 {[%clk 0:00:29.3]} 34. Kh2 {[%clk 0:00:02.3]} 34... Ke5 {[%clk
0:00:29]} 35. Rd1 {[%clk 0:00:02]} 35... a5 {[%clk 0:00:29.7]} 36. Kg3 {[%clk
0:00:02.3]} 36... b4 {[%clk 0:00:29.8]} 37. axb4 {[%clk 0:00:03.2]} 37... axb4
{[%clk 0:00:30.7]} 38. Re1+ {[%clk 0:00:03]} 38... Kf6 {[%clk 0:00:30.8]} 39. f4
{[%clk 0:00:03]} 39... b3 {[%clk 0:00:29.8]} 40. fxg5+ {[%clk 0:00:03.6]} 40...
hxg5 {[%clk 0:00:29.9]} 41. Bd1 {[%clk 0:00:01.7]} 41... Bd5 {[%clk 0:00:29.4]}
42. h4 {[%clk 0:00:02.1]} 42... c3 {[%clk 0:00:29.4]} 43. hxg5+ {[%clk
0:00:02.6]} 43... Kxg5 {[%clk 0:00:29.6]} 44. Bxb3 {[%clk 0:00:02.6]} 44... Bxb3
{[%clk 0:00:29.6]} 45. Rc1 {[%clk 0:00:01.9]} 45... c2 {[%clk 0:00:29.3]} 46.
Kf3 {[%clk 0:00:02.4]} 46... Rc8 {[%clk 0:00:26.6]} 47. Ke3 {[%clk 0:00:02.2]}
47... Kxg4 {[%clk 0:00:25.2]} 48. f6 {[%clk 0:00:01.6]} 48... Bxe6 {[%clk
0:00:25.9]} 49. Kd3 {[%clk 0:00:01.7]} 49... Kg5 {[%clk 0:00:25.9]} 50. Kd2
{[%clk 0:00:01.8]} 50... Bf5 {[%clk 0:00:26.1]} 51. f7 {[%clk 0:00:02.3]} 51...
Kf6 {[%clk 0:00:25.8]} 52. Rf1 {[%clk 0:00:02.2]} 52... c1=Q+ {[%clk 0:00:15.9]}
53. Rxc1 {[%clk 0:00:02]} 53... Rd8+ {[%clk 0:00:16.6]} 54. Ke3 {[%clk
0:00:02.2]} 54... Kxf7 {[%clk 0:00:17.3]} 55. Kf4 {[%clk 0:00:02.2]} 55... Be6
{[%clk 0:00:17.6]} 56. Rc7+ {[%clk 0:00:02.4]} 56... Kf6 {[%clk 0:00:17.9]} 57.
Rc5 {[%clk 0:00:01.8]} 57... Rd4+ {[%clk 0:00:18.1]} 58. Ke3 {[%clk 0:00:02.5]}
58... Ra4 {[%clk 0:00:18.6]} 59. Rc3 {[%clk 0:00:02.7]} 59... Ke5 {[%clk
0:00:18.4]} 60. Kd3 {[%clk 0:00:02.9]} 60... Bd5 {[%clk 0:00:19]} 61. Ke3 {[%clk
0:00:03.2]} 61... Rh4 {[%clk 0:00:18.9]} 62. Rc8 {[%clk 0:00:03.4]} 62... Rh3+
{[%clk 0:00:19.2]} 63. Kf2 {[%clk 0:00:04.1]} 63... Kd4 {[%clk 0:00:19.7]} 64.
Re8 {[%clk 0:00:03.8]} 64... Rf3+ {[%clk 0:00:20.1]} 65. Ke2 {[%clk 0:00:03.9]}
65... Rg3 {[%clk 0:00:20.8]} 66. Kf2 {[%clk 0:00:04.2]} 66... Rg2+ {[%clk
0:00:21]} 67. Kf1 {[%clk 0:00:04.7]} 67... Ra2 {[%clk 0:00:19.8]} 68. Ke1 {[%clk
0:00:03.8]} 68... Be4 {[%clk 0:00:20.2]} 69. Kd1 {[%clk 0:00:02.3]} 69... Ke3
{[%clk 0:00:20.4]} 70. Kc1 {[%clk 0:00:01.8]} 70... Rc2+ {[%clk 0:00:20.7]} 71.
Kd1 {[%clk 0:00:02.2]} 71... Rc5 {[%clk 0:00:18.5]} 0-1

[Event "Early-Titled-Tuesday-Blitz-October-17-2023"]
[Site "Chess.com"]
[Date "2023.10.17"]
[Round "3"]
[White "ViktoriyaTarasova"]
[Black "Hambardzumyan_Yuri"]
[Result "0-1"]
[WhiteElo "2372"]
[BlackElo "2361"]
[TimeControl "180+1"]
[EndTime "8:30:38 PDT"]
[Termination "Hambardzumyan_Yuri won by resignation"]

1. d4 {[%clk 0:02:50.5]} 1... Nf6 {[%clk 0:02:59.9]} 2. c4 {[%clk 0:02:49.8]}
2... e6 {[%clk 0:03:00.4]} 3. Nc3 {[%clk 0:02:49.3]} 3... Bb4 {[%clk 0:03:01]}
4. e3 {[%clk 0:02:47.6]} 4... O-O {[%clk 0:02:57.2]} 5. Bd3 {[%clk 0:02:39.6]}
5... d5 {[%clk 0:02:54.8]} 6. cxd5 {[%clk 0:02:38]} 6... exd5 {[%clk 0:02:48.8]}
7. Ne2 {[%clk 0:02:35.4]} 7... Re8 {[%clk 0:02:46.3]} 8. O-O {[%clk 0:02:35.1]}
8... c6 {[%clk 0:02:45.4]} 9. Ng3 {[%clk 0:02:33.4]} 9... Nbd7 {[%clk
0:02:44.9]} 10. f3 {[%clk 0:02:33]} 10... Nf8 {[%clk 0:02:44.5]} 11. Bd2 {[%clk
0:02:29.7]} 11... Be7 {[%clk 0:02:14.5]} 12. Nce2 {[%clk 0:02:26.8]} 12... c5
{[%clk 0:02:12.7]} 13. Rc1 {[%clk 0:02:21.5]} 13... cxd4 {[%clk 0:02:08.5]} 14.
Nxd4 {[%clk 0:02:21]} 14... Bd7 {[%clk 0:02:03.1]} 15. Ngf5 {[%clk 0:02:19]}
15... Rc8 {[%clk 0:01:53.9]} 16. Qb3 {[%clk 0:02:18]} 16... b6 {[%clk
0:01:43.4]} 17. Ba6 {[%clk 0:02:15.2]} 17... Rxc1 {[%clk 0:01:40.4]} 18. Rxc1
{[%clk 0:02:15]} 18... Bxf5 {[%clk 0:01:40]} 19. Nxf5 {[%clk 0:02:14.6]} 19...
Bc5 {[%clk 0:01:40.3]} 20. Qd3 {[%clk 0:01:44.1]} 20... Ne6 {[%clk 0:01:24.9]}
21. b4 {[%clk 0:01:32.6]} 21... Bf8 {[%clk 0:01:22.1]} 22. Bb5 {[%clk
0:01:27.8]} 22... Nd7 {[%clk 0:01:18.5]} 23. Qxd5 {[%clk 0:01:20.5]} 23... Nc7
{[%clk 0:00:53.9]} 24. Qxd7 {[%clk 0:00:27.7]} 24... Nxb5 {[%clk 0:00:53.1]} 25.
Qxd8 {[%clk 0:00:09.2]} 25... Rxd8 {[%clk 0:00:54]} 26. Be1 {[%clk 0:00:09.4]}
26... g6 {[%clk 0:00:54.4]} 27. Ng3 {[%clk 0:00:09.3]} 27... Rd3 {[%clk
0:00:53.7]} 28. Nf1 {[%clk 0:00:05.6]} 28... Ra3 {[%clk 0:00:50.7]} 29. Rc2
{[%clk 0:00:06]} 29... Ra4 {[%clk 0:00:43.3]} 30. Rb2 {[%clk 0:00:05.2]} 30...
Bg7 {[%clk 0:00:42.1]} 31. Rc2 {[%clk 0:00:04.7]} 31... Bf8 {[%clk 0:00:40.1]}
32. Rb2 {[%clk 0:00:05.1]} 32... Na3 {[%clk 0:00:32.1]} 33. Kf2 {[%clk
0:00:03.6]} 33... Nc4 {[%clk 0:00:32.4]} 34. Rc2 {[%clk 0:00:04.1]} 34... b5
{[%clk 0:00:33]} 35. Nd2 {[%clk 0:00:01]} 35... Ne5 {[%clk 0:00:32.5]} 36. Ne4
{[%clk 0:00:01]} 36... Nd3+ {[%clk 0:00:22.7]} 37. Ke2 {[%clk 0:00:01.4]} 37...
Nxe1 {[%clk 0:00:20.3]} 38. Kxe1 {[%clk 0:00:01.6]} 38... Bxb4+ {[%clk
0:00:21.2]} 39. Ke2 {[%clk 0:00:02.2]} 39... Kg7 {[%clk 0:00:19]} 40. Ng3 {[%clk
0:00:02.5]} 40... a5 {[%clk 0:00:16.3]} 41. e4 {[%clk 0:00:03.1]} 41... Ra3
{[%clk 0:00:14.1]} 42. Nf1 {[%clk 0:00:03.9]} 42... Be7 {[%clk 0:00:12.2]} 43.
Ne3 {[%clk 0:00:04.4]} 43... Bf6 {[%clk 0:00:08.3]} 44. Nd5 {[%clk 0:00:05]}
44... Bd4 {[%clk 0:00:08.7]} 45. f4 {[%clk 0:00:05.2]} 45... h5 {[%clk
0:00:08.1]} 46. Rd2 {[%clk 0:00:05.5]} 46... Bc5 {[%clk 0:00:07.8]} 47. h3
{[%clk 0:00:06]} 47... h4 {[%clk 0:00:06.9]} 48. Rc2 {[%clk 0:00:06.6]} 48...
Bd4 {[%clk 0:00:06.7]} 49. Rd2 {[%clk 0:00:06.9]} 49... Ba7 {[%clk 0:00:04.6]}
50. Rc2 {[%clk 0:00:07.2]} 50... Rg3 {[%clk 0:00:04.2]} 51. Kf1 {[%clk 0:00:07]}
51... Bd4 {[%clk 0:00:03.9]} 52. Rd2 {[%clk 0:00:06.4]} 52... Bc3 {[%clk
0:00:03.5]} 53. Rc2 {[%clk 0:00:06.8]} 53... b4 {[%clk 0:00:03.9]} 54. Nxc3
{[%clk 0:00:05.4]} 54... bxc3 {[%clk 0:00:04.7]} 55. Kf2 {[%clk 0:00:05.8]}
55... Kf6 {[%clk 0:00:03.7]} 56. Kf1 {[%clk 0:00:04.4]} 56... Ke6 {[%clk
0:00:04]} 57. Kf2 {[%clk 0:00:05]} 57... Kd6 {[%clk 0:00:04.4]} 58. Kf1 {[%clk
0:00:04.6]} 58... Kc5 {[%clk 0:00:04.7]} 59. f5 {[%clk 0:00:04.7]} 59... gxf5
{[%clk 0:00:04.5]} 60. exf5 {[%clk 0:00:05.3]} 60... Kc4 {[%clk 0:00:05.3]} 61.
Kf2 {[%clk 0:00:05.9]} 61... Kd3 {[%clk 0:00:05.6]} 62. Rc1 {[%clk 0:00:06.5]}
62... c2 {[%clk 0:00:05.3]} 63. Re1 {[%clk 0:00:06.8]} 63... Kc3 {[%clk
0:00:04.6]} 64. Rc1 {[%clk 0:00:06.5]} 64... Kb2 {[%clk 0:00:04.9]} 65. Rd1
{[%clk 0:00:06.8]} 65... cxd1=Q {[%clk 0:00:04.4]} 0-1

[Event "Early-Titled-Tuesday-Blitz-October-17-2023"]
[Site "Chess.com"]
[Date "2023.10.17"]
[Round "3"]
[White "Herman-NY"]
[Black "LeoWin2012"]
[Result "1-0"]
[WhiteElo "2546"]
[BlackElo "2314"]
[TimeControl "180+1"]
[EndTime "8:30:42 PDT"]
[Termination "Herman-NY won by checkmate"]

1. e4 {[%clk 0:03:00.9]} 1... e6 {[%clk 0:02:59.7]} 2. d4 {[%clk 0:03:01]} 2...
d5 {[%clk 0:02:56.3]} 3. e5 {[%clk 0:03:01.4]} 3... c5 {[%clk 0:02:55.9]} 4. c3
{[%clk 0:03:01.5]} 4... Nc6 {[%clk 0:02:53.9]} 5. Nf3 {[%clk 0:03:00.9]} 5...
Qb6 {[%clk 0:02:53.7]} 6. Bd3 {[%clk 0:02:59.6]} 6... cxd4 {[%clk 0:02:52]} 7.
O-O {[%clk 0:03:00]} 7... dxc3 {[%clk 0:02:51.5]} 8. Nxc3 {[%clk 0:02:54.1]}
8... Nge7 {[%clk 0:02:51.5]} 9. Re1 {[%clk 0:02:26.6]} 9... Bd7 {[%clk
0:02:42.9]} 10. Nb5 {[%clk 0:02:20]} 10... Nc8 {[%clk 0:02:41.8]} 11. Be3 {[%clk
0:02:19]} 11... Qd8 {[%clk 0:02:38.8]} 12. h4 {[%clk 0:02:00.2]} 12... a6 {[%clk
0:02:38.1]} 13. Nbd4 {[%clk 0:02:00.5]} 13... Be7 {[%clk 0:02:32.5]} 14. h5
{[%clk 0:01:56.6]} 14... h6 {[%clk 0:02:27.8]} 15. Rc1 {[%clk 0:01:50.6]} 15...
Nxd4 {[%clk 0:02:21.9]} 16. Nxd4 {[%clk 0:01:49.3]} 16... Bg5 {[%clk 0:02:20.9]}
17. f4 {[%clk 0:01:48.6]} 17... Bh4 {[%clk 0:02:20]} 18. Qg4 {[%clk 0:01:21.4]}
18... O-O {[%clk 0:01:44.4]} 19. g3 {[%clk 0:01:02.6]} 19... Be7 {[%clk
0:01:33.6]} 20. Kh1 {[%clk 0:00:32.8]} 20... Nb6 {[%clk 0:01:16.7]} 21. Rc2
{[%clk 0:00:29.6]} 21... Nc4 {[%clk 0:01:11]} 22. Bg1 {[%clk 0:00:29.9]} 22...
Bc5 {[%clk 0:00:56.9]} 23. b3 {[%clk 0:00:27.9]} 23... Bxd4 {[%clk 0:00:53.8]}
24. Bxd4 {[%clk 0:00:28.8]} 24... Na3 {[%clk 0:00:53.1]} 25. Rg2 {[%clk
0:00:27.5]} 25... Nb5 {[%clk 0:00:52.7]} 26. Be3 {[%clk 0:00:22.2]} 26... d4
{[%clk 0:00:52.2]} 27. Bd2 {[%clk 0:00:21.5]} 27... Bc6 {[%clk 0:00:52.3]} 28.
Re4 {[%clk 0:00:20.2]} 28... Bxe4 {[%clk 0:00:45.9]} 29. Bxe4 {[%clk 0:00:20.5]}
29... f5 {[%clk 0:00:44.7]} 30. exf6 {[%clk 0:00:21.4]} 30... Qxf6 {[%clk
0:00:45.2]} 31. Bxb7 {[%clk 0:00:20.4]} 31... Rab8 {[%clk 0:00:45]} 32. Be4
{[%clk 0:00:16]} 32... Rf7 {[%clk 0:00:44.4]} 33. Qe2 {[%clk 0:00:13.9]} 33...
Rc7 {[%clk 0:00:43]} 34. Bd3 {[%clk 0:00:13.3]} 34... Rbc8 {[%clk 0:00:42.2]}
35. Qe4 {[%clk 0:00:13.5]} 35... Nc3 {[%clk 0:00:36]} 36. Qh7+ {[%clk
0:00:13.5]} 36... Kf7 {[%clk 0:00:36.4]} 37. Bg6+ {[%clk 0:00:10.3]} 37... Ke7
{[%clk 0:00:36.6]} 38. Kh2 {[%clk 0:00:11.2]} 38... Nd5 {[%clk 0:00:32.1]} 39.
Kh3 {[%clk 0:00:10.5]} 39... Rd8 {[%clk 0:00:31.8]} 40. Rf2 {[%clk 0:00:09.5]}
40... Rcc8 {[%clk 0:00:31.4]} 41. Bd3 {[%clk 0:00:09.1]} 41... Rh8 {[%clk
0:00:30.4]} 42. Qe4 {[%clk 0:00:09.5]} 42... Nc3 {[%clk 0:00:30.5]} 43. Qb7+
{[%clk 0:00:09.7]} 43... Kd6 {[%clk 0:00:26.3]} 44. Qxa6+ {[%clk 0:00:09.7]}
44... Rc6 {[%clk 0:00:25.9]} 45. Qa3+ {[%clk 0:00:09]} 45... Kc7 {[%clk
0:00:22]} 46. Qa5+ {[%clk 0:00:08.6]} 46... Kd6 {[%clk 0:00:20]} 47. b4 {[%clk
0:00:08.3]} 47... Nd5 {[%clk 0:00:16.1]} 48. b5 {[%clk 0:00:08]} 48... Rb6
{[%clk 0:00:16.6]} 49. Be4 {[%clk 0:00:07]} 49... Rc8 {[%clk 0:00:15.4]} 50.
Bxd5 {[%clk 0:00:06.5]} 50... Kxd5 {[%clk 0:00:14.6]} 51. Qxb6 {[%clk
0:00:06.4]} 51... Qf5+ {[%clk 0:00:15.4]} 52. Kh2 {[%clk 0:00:06.9]} 52... Qxh5+
{[%clk 0:00:15.1]} 53. Kg2 {[%clk 0:00:07.5]} 53... Qf5 {[%clk 0:00:12.5]} 54.
Qb7+ {[%clk 0:00:07.8]} 54... Kd6 {[%clk 0:00:11.8]} 55. Qxc8 {[%clk 0:00:08.3]}
55... Qe4+ {[%clk 0:00:12.3]} 56. Kg1 {[%clk 0:00:08.1]} 56... Qb1+ {[%clk
0:00:12.2]} 57. Kh2 {[%clk 0:00:08.6]} 57... Qg6 {[%clk 0:00:10.8]} 58. Qc6+
{[%clk 0:00:08.9]} 58... Ke7 {[%clk 0:00:11.1]} 59. Bb4+ {[%clk 0:00:09.6]}
59... Kf7 {[%clk 0:00:10.1]} 60. Qd7+ {[%clk 0:00:09.4]} 60... Kg8 {[%clk
0:00:10.5]} 61. Qxd4 {[%clk 0:00:09.8]} 61... Qh5+ {[%clk 0:00:10.3]} 62. Kg2
{[%clk 0:00:10.3]} 62... Qxb5 {[%clk 0:00:09.5]} 63. Bc3 {[%clk 0:00:10.8]}
63... Qc6+ {[%clk 0:00:09.2]} 64. Rf3 {[%clk 0:00:11.4]} 64... Qb7 {[%clk
0:00:07.9]} 65. Qxg7+ {[%clk 0:00:11.3]} 65... Qxg7 {[%clk 0:00:08.8]} 66. Bxg7
{[%clk 0:00:11.9]} 66... Kxg7 {[%clk 0:00:09.7]} 67. a4 {[%clk 0:00:12.4]} 67...
Kf6 {[%clk 0:00:10.6]} 68. a5 {[%clk 0:00:13.1]} 68... Kf7 {[%clk 0:00:11.5]}
69. a6 {[%clk 0:00:13.8]} 69... e5 {[%clk 0:00:10]} 70. fxe5+ {[%clk 0:00:13.8]}
70... Ke6 {[%clk 0:00:10]} 71. a7 {[%clk 0:00:14.4]} 71... h5 {[%clk 0:00:10.4]}
72. a8=Q {[%clk 0:00:15.1]} 72... h4 {[%clk 0:00:11.3]} 73. Qc6+ {[%clk
0:00:15.5]} 73... Kxe5 {[%clk 0:00:11.4]} 74. Qf6+ {[%clk 0:00:15.6]} 74... Kd5
{[%clk 0:00:11.6]} 75. Rf5+ {[%clk 0:00:16.2]} 75... Kc4 {[%clk 0:00:12.5]} 76.
Qc6+ {[%clk 0:00:16.4]} 76... Kb3 {[%clk 0:00:13.4]} 77. Qb5+ {[%clk 0:00:16.5]}
77... Kc2 {[%clk 0:00:14.3]} 78. Rf2+ {[%clk 0:00:16.8]} 78... Kd1 {[%clk
0:00:14.6]} 79. Qb1# {[%clk 0:00:16.8]} 1-0

[Event "Early-Titled-Tuesday-Blitz-October-17-2023"]
[Site "Chess.com"]
[Date "2023.10.17"]
[Round "3"]
[White "Balla_Tamas"]
[Black "Air-Conditioner07"]
[Result "1-0"]
[WhiteElo "2404"]
[BlackElo "2176"]
[TimeControl "180+1"]
[EndTime "8:30:42 PDT"]
[Termination "Balla_Tamas won on time"]

1. e4 {[%clk 0:02:59.4]} 1... e5 {[%clk 0:02:59.5]} 2. Nf3 {[%clk 0:02:58.7]}
2... Nc6 {[%clk 0:02:59.8]} 3. d4 {[%clk 0:02:59.2]} 3... exd4 {[%clk
0:02:59.3]} 4. Nxd4 {[%clk 0:03:00.1]} 4... Nf6 {[%clk 0:02:59.5]} 5. Nxc6
{[%clk 0:03:00]} 5... bxc6 {[%clk 0:02:59.4]} 6. e5 {[%clk 0:03:00.6]} 6... Qe7
{[%clk 0:02:59.3]} 7. Qe2 {[%clk 0:03:00.1]} 7... Nd5 {[%clk 0:02:59.2]} 8. h4
{[%clk 0:03:00.7]} 8... Qe6 {[%clk 0:02:41.4]} 9. c4 {[%clk 0:02:55.2]} 9... Ne7
{[%clk 0:02:17.3]} 10. g3 {[%clk 0:02:52.8]} 10... d6 {[%clk 0:02:07.3]} 11. Bh3
{[%clk 0:02:52.1]} 11... Qxe5 {[%clk 0:02:03.9]} 12. Qxe5 {[%clk 0:02:40.1]}
12... dxe5 {[%clk 0:02:03.1]} 13. Bxc8 {[%clk 0:02:40.8]} 13... Rxc8 {[%clk
0:02:02.6]} 14. Nc3 {[%clk 0:02:40.7]} 14... Nf5 {[%clk 0:02:00.7]} 15. O-O
{[%clk 0:02:39.1]} 15... Bc5 {[%clk 0:01:57.4]} 16. Ne4 {[%clk 0:02:36.1]} 16...
Bd4 {[%clk 0:01:55.2]} 17. Kg2 {[%clk 0:02:31.3]} 17... O-O {[%clk 0:01:52.8]}
18. Rb1 {[%clk 0:02:27]} 18... Rb8 {[%clk 0:01:50.7]} 19. b3 {[%clk 0:02:26.6]}
19... Rfd8 {[%clk 0:01:49.2]} 20. Ba3 {[%clk 0:02:17.4]} 20... Nd6 {[%clk
0:01:28.2]} 21. Nc5 {[%clk 0:02:13.9]} 21... Bxc5 {[%clk 0:01:22.5]} 22. Bxc5
{[%clk 0:02:14.8]} 22... Ne4 {[%clk 0:01:22.7]} 23. Be3 {[%clk 0:02:12.8]} 23...
Nd2 {[%clk 0:01:21.4]} 24. Bxd2 {[%clk 0:02:10.6]} 24... Rxd2 {[%clk 0:01:22.3]}
25. Rfe1 {[%clk 0:02:10.1]} 25... f6 {[%clk 0:01:19.5]} 26. Red1 {[%clk
0:01:55.4]} 26... Rbd8 {[%clk 0:01:19.3]} 27. Rxd2 {[%clk 0:01:55.6]} 27... Rxd2
{[%clk 0:01:20]} 28. a3 {[%clk 0:01:56.1]} 28... Ra2 {[%clk 0:01:17.6]} 29. a4
{[%clk 0:01:47]} 29... Kf7 {[%clk 0:01:15.8]} 30. Kf3 {[%clk 0:01:47.3]} 30...
Ke6 {[%clk 0:01:15.4]} 31. Ke3 {[%clk 0:01:47.7]} 31... c5 {[%clk 0:01:09.1]}
32. f3 {[%clk 0:01:47]} 32... Rg2 {[%clk 0:01:08.2]} 33. g4 {[%clk 0:01:46.9]}
33... Rh2 {[%clk 0:01:08]} 34. h5 {[%clk 0:01:47.2]} 34... g6 {[%clk 0:00:53.5]}
35. hxg6 {[%clk 0:01:44.5]} 35... hxg6 {[%clk 0:00:54.4]} 36. Rd1 {[%clk
0:01:43]} 36... Rb2 {[%clk 0:00:52.8]} 37. Rd3 {[%clk 0:01:43.5]} 37... f5
{[%clk 0:00:52.3]} 38. gxf5+ {[%clk 0:01:38.1]} 38... gxf5 {[%clk 0:00:53.2]}
39. Rc3 {[%clk 0:01:34.2]} 39... Kf6 {[%clk 0:00:42.5]} 40. Rd3 {[%clk
0:01:31.5]} 40... f4+ {[%clk 0:00:37.9]} 41. Ke4 {[%clk 0:01:29.6]} 41... Re2+
{[%clk 0:00:38.3]} 42. Kd5 {[%clk 0:01:30]} 42... Re3 {[%clk 0:00:38.2]} 43. Rd1
{[%clk 0:01:24]} 43... Rxb3 {[%clk 0:00:36.1]} 44. Rf1 {[%clk 0:01:22]} 44...
Ra3 {[%clk 0:00:30.4]} 45. Kxc5 {[%clk 0:01:21.1]} 45... Rxa4 {[%clk 0:00:30.8]}
46. Kd5 {[%clk 0:01:21.6]} 46... c6+ {[%clk 0:00:27.2]} 47. Kc5 {[%clk
0:01:16.5]} 47... Ke6 {[%clk 0:00:26.1]} 48. Rd1 {[%clk 0:01:16.1]} 48... Ra3
{[%clk 0:00:17.3]} 49. Rf1 {[%clk 0:01:16.4]} 49... Ra4 {[%clk 0:00:15.8]} 50.
Rh1 {[%clk 0:01:14.9]} 50... Ra3 {[%clk 0:00:15.2]} 51. Rh6+ {[%clk 0:01:15.2]}
51... Kf5 {[%clk 0:00:15.5]} 52. Rh3 {[%clk 0:01:13]} 52... Re3 {[%clk
0:00:15.6]} 53. Kxc6 {[%clk 0:01:10.9]} 53... e4 {[%clk 0:00:16]} 54. Rh5+
{[%clk 0:01:11.1]} 54... Ke6 {[%clk 0:00:15.4]} 55. fxe4 {[%clk 0:01:11]} 55...
Rxe4 {[%clk 0:00:15.3]} 56. c5 {[%clk 0:01:11.7]} 56... f3 {[%clk 0:00:15.1]}
57. Rh8 {[%clk 0:01:04.6]} 57... Rf4 {[%clk 0:00:14.7]} 58. Rh1 {[%clk
0:00:54.6]} 58... f2 {[%clk 0:00:14.7]} 59. Rf1 {[%clk 0:00:55.1]} 59... Ke7
{[%clk 0:00:14.1]} 60. Kb7 {[%clk 0:00:55.4]} 60... Kd7 {[%clk 0:00:13.9]} 61.
c6+ {[%clk 0:00:55.3]} 61... Kd6 {[%clk 0:00:12.8]} 62. c7 {[%clk 0:00:55.8]}
62... Rb4+ {[%clk 0:00:10.4]} 63. Kc8 {[%clk 0:00:49.2]} 63... Rc4 {[%clk
0:00:10.7]} 64. Rd1+ {[%clk 0:00:49.4]} 64... Kc6 {[%clk 0:00:08.8]} 65. Kd8
{[%clk 0:00:46.3]} 65... Kb7 {[%clk 0:00:08.2]} 66. Rb1+ {[%clk 0:00:44.1]}
66... Ka6 {[%clk 0:00:06.8]} 67. c8=Q+ {[%clk 0:00:44]} 67... Rxc8+ {[%clk
0:00:06.6]} 68. Kxc8 {[%clk 0:00:44.9]} 68... Ka5 {[%clk 0:00:07.2]} 69. Rf1
{[%clk 0:00:45.6]} 69... Ka4 {[%clk 0:00:07.2]} 70. Rxf2 {[%clk 0:00:46.2]}
70... a5 {[%clk 0:00:07.6]} 71. Kb7 {[%clk 0:00:46.4]} 71... Kb3 {[%clk
0:00:08.2]} 72. Kb6 {[%clk 0:00:46.8]} 72... a4 {[%clk 0:00:08.8]} 73. Kb5
{[%clk 0:00:46]} 73... a3 {[%clk 0:00:09.4]} 74. Rf3+ {[%clk 0:00:46.6]} 74...
Kb2 {[%clk 0:00:09.5]} 75. Kb4 {[%clk 0:00:43.2]} 75... a2 {[%clk 0:00:08.6]}
76. Rf2+ {[%clk 0:00:43.7]} 76... Kb1 {[%clk 0:00:07.1]} 77. Kb3 {[%clk
0:00:39.3]} 1-0